bitfinex/quotes_SOLUSD_20240703
["timestamp","ask_amount","ask_price","bid_price","bid_amount"]
[1720043998628,7.0484,141.88,141.84,7.0501]
[1720043998941,7.0484,141.88,141.84,20.4301]
[1720043999123,7.0484,141.88,141.84,7.0501]
[1720043999726,7.0484,141.88,141.84,20.4301]
[1720044000348,7.0496,141.86,141.8,17.6294]
[1720044000514,1.00009429,141.85,141.76,0.8310118]
[1720044000719,8.04999429,141.85,141.8,20.4317]
[1720044000924,8.04999429,141.85,141.76,0.8310118]
[1720044000925,7.0502,141.84,141.81,13.38]
[1720044001148,7.0502,141.84,141.8,13.38]
[1720044001337,1.00009429,141.83,141.76,0.8310118]
[1720044001544,7.0513,141.82,141.78,13.38]
[1720044001721,1.00009429,141.84,141.78,17.6327]
[1720044001921,8.05039429,141.84,141.8,7.0521]
[1720044002132,7.0506,141.83,141.8,13.38]
[1720044002652,1.00009429,141.84,141.78,24.6856]
[1720044002653,7.0512,141.82,141.78,24.6856]
[1720044002840,7.0512,141.82,141.78,20.433]
[1720044003165,7.0512,141.82,141.78,13.38]
[1720044003166,8.05129429,141.82,141.78,13.38]
[1720044003340,1.00009429,141.82,141.78,13.38]
[1720044003544,14.38009429,141.82,141.77,13.38]
[1720044003744,14.38009429,141.82,141.76,25.5200118]
[1720044003745,13.38,141.81,141.76,25.5200118]
[1720044004050,1.00009429,141.8,141.76,38.9000118]
[1720044004242,8.05259429,141.8,141.76,31.8462118]
[1720044004440,7.0525,141.8,141.76,31.8462118]
[1720044004755,7.0527,141.79,141.76,31.8462118]
[1720044004952,7.0533,141.78,141.76,0.8310118]
[1720044005133,1.00009429,141.79,141.76,0.8310118]
[1720044005134,21.43289429,141.79,141.76,0.8310118]
[1720044005334,7.0536,141.77,141.76,0.8310118]
[1720044005656,21.43369429,141.77,141.76,0.8310118]
[1720044005857,13.38,141.78,141.76,0.8310118]
[1720044006030,7.0533,141.78,141.76,0.8310118]
[1720044006360,14.38009429,141.79,141.76,0.8310118]
[1720044006361,1.00009429,141.79,141.76,0.8310118]
[1720044006561,7.0536,141.77,141.76,0.8310118]
[1720044006760,21.43369429,141.77,141.76,0.8310118]
[1720044007141,8.05369429,141.77,141.76,0.8310118]
[1720044008635,27.93559429,141.77,141.76,0.8310118]
[1720044008835,44.10609429,141.77,141.76,0.8310118]
[1720044009052,64.10609429,141.77,141.76,0.8310118]
[1720044010834,63.76609429,141.77,141.76,0.8310118]
[1720044011444,1.00009429,141.79,141.76,0.8310118]
[1720044011653,7.0532,141.78,141.76,0.8310118]
[1720044011869,20.4332,141.78,141.76,0.8310118]
[1720044012052,1.00009429,141.79,141.76,0.8310118]
[1720044012253,8.05289429,141.79,141.76,0.8310118]
[1720044012441,7.0532,141.78,141.76,0.8310118]
[1720044012643,8.05369429,141.77,141.76,0.8310118]
[1720044012964,21.43369429,141.77,141.76,0.8310118]
[1720044013149,20.4336,141.77,141.76,0.8310118]
[1720044013356,7.0536,141.77,141.76,0.8310118]
[1720044013547,8.05369429,141.77,141.76,0.8310118]
[1720044014066,8.05339429,141.78,141.76,0.8310118]
[1720044014262,7.0528,141.79,141.76,0.8310118]
[1720044014471,8.05289429,141.79,141.76,0.8310118]
[1720044014843,7.0532,141.78,141.76,0.8310118]
[1720044015369,6.4965,141.81,141.76,0.8310118]
[1720044015370,7.0536,141.77,141.76,0.8310118]
[1720044015574,13.38,141.77,141.76,0.8310118]
[1720044016070,20.4336,141.77,141.76,0.8310118]
[1720044018669,13.38,141.77,141.76,0.8310118]
[1720044019070,20.4336,141.77,141.76,0.8310118]
[1720044020262,7.0536,141.77,141.76,0.8310118]
[1720044020468,20.4336,141.77,141.76,0.8310118]
[1720044020814,7.0536,141.77,141.76,0.8310118]
[1720044020998,20.4336,141.77,141.76,0.8310118]
[1720044021987,7.0536,141.77,141.76,0.8310118]
[1720044022201,18.63099429,141.8,141.76,0.8310118]
[1720044022365,8.05179429,141.81,141.77,7.0536]
[1720044022566,1.00009429,141.81,141.76,31.8461118]
[1720044022865,21.43189429,141.81,141.77,7.0536]
[1720044023083,20.4325,141.8,141.76,18.4661118]
[1720044023273,20.4325,141.8,141.76,25.5202118]
[1720044023664,7.0525,141.8,141.76,38.9002118]
[1720044024398,1.00009429,141.79,141.76,25.5202118]
[1720044024887,1.00009429,141.79,141.76,18.4661118]
[1720044025099,8.05279429,141.79,141.76,0.8310118]
[1720044025278,20.4333,141.78,141.76,0.8310118]
[1720044025686,13.38,141.78,141.76,0.8310118]
[1720044025901,14.38009429,141.78,141.76,0.8310118]
[1720044026192,1.00009429,141.77,141.76,0.8310118]
[1720044026392,8.05369429,141.77,141.76,0.8310118]
[1720044026992,7.0536,141.77,141.76,0.8310118]
[1720044027195,8.05369429,141.77,141.76,0.8310118]
[1720044027370,21.43369429,141.77,141.76,0.8310118]
[1720044027998,41.43369429,141.77,141.76,0.8310118]
[1720044030187,28.05369429,141.77,141.76,0.8310118]
[1720044030484,41.43369429,141.77,141.76,0.8310118]
[1720044030690,41.77369429,141.77,141.76,0.8310118]
[1720044031667,17.6356,141.76,141.67,17.6456]
[1720044031872,20.437,141.71,141.67,24.7041]
[1720044032376,7.057,141.71,141.67,38.0841]
[1720044032583,8.05709429,141.71,141.67,38.0841]
[1720044032896,1.00009429,141.7,141.67,17.6456]
[1720044033190,7.0577,141.69,141.65,15.8914]
[1720044033373,20.4377,141.69,141.65,15.8914]
[1720044033696,1.00009429,141.73,141.66,17.6472]
[1720044033869,13.38,141.71,141.68,7.0581]
[1720044034070,21.43709429,141.71,141.67,7.0583]
[1720044034273,21.43709429,141.71,141.67,20.4383]
[1720044034487,1.00009429,141.73,141.68,20.438]
[1720044034685,21.43609429,141.73,141.68,20.438]
[1720044034888,20.436,141.73,141.68,20.438]
[1720044035279,7.0551,141.74,141.69,13.38]
[1720044035471,7.0551,141.74,141.68,17.6449]
[1720044035472,20.4351,141.74,141.68,17.6449]
[1720044035671,8.05599429,141.73,141.69,7.0574]
[1720044035993,21.43589429,141.73,141.68,24.7027]
[1720044036194,20.4358,141.73,141.69,7.0575]
[1720044036494,1.00009429,141.76,141.7,7.0571]
[1720044036495,7.0553,141.74,141.7,7.0571]
[1720044036703,1.00009429,141.76,141.7,31.0223]
[1720044036988,7.0548,141.75,141.71,20.4365]
[1720044037393,7.0551,141.74,141.71,13.38]
[1720044037569,7.0556,141.73,141.7,13.38]
[1720044037768,7.0556,141.73,141.69,20.4374]
[1720044038093,20.4353,141.74,141.7,7.057]
[1720044038294,20.4353,141.74,141.69,38.0812]
[1720044038682,20.4353,141.74,141.7,7.0571]
[1720044040300,20.4353,141.74,141.69,38.0813]
[1720044041387,20.4353,141.74,141.7,7.057]
[1720044042398,8.05579429,141.73,141.69,24.7012]
[1720044042582,14.38009429,141.73,141.69,24.7012]
[1720044043000,21.43589429,141.73,141.69,24.7012]
[1720044043324,20.4353,141.74,141.7,7.057]
[1720044043606,1.00009429,141.73,141.7,7.057]
[1720044044585,1.00009429,141.73,141.69,38.0814]
[1720044044809,1.00009429,141.73,141.71,7.0566]
[1720044045105,13.38,141.74,141.7,7.0569]
[1720044045517,7.0551,141.74,141.7,20.4369]
[1720044045688,8.05519429,141.74,141.7,7.0569]
[1720044045893,8.05519429,141.74,141.7,20.4369]
[1720044046086,14.38009429,141.74,141.71,7.0566]
[1720044046401,14.38009429,141.74,141.7,7.0569]
[1720044046603,21.43519429,141.74,141.7,7.0569]
[1720044050328,1.00009429,141.73,141.66,17.6475]
[1720044050492,15.186,141.77,141.66,17.6475]
[1720044050493,13.38,141.71,141.66,31.0275]
[1720044050690,20.4368,141.71,141.67,7.0583]
[1720044051113,7.0568,141.71,141.67,20.4383]
[1720044051610,8.05689429,141.71,141.67,7.0583]
[1720044051818,21.43689429,141.71,141.67,7.0583]
[1720044052310,13.38,141.71,141.68,7.0579]
[1720044052494,14.38009429,141.71,141.67,7.0584]
[1720044052693,1.00009429,141.7,141.66,31.0275]
[1720044052897,1.00009429,141.7,141.66,17.6475]
[1720044053112,17.6382,141.74,141.63,6.0195]
[1720044053113,7.0585,141.68,141.64,7.0599]
[1720044053316,1.00009429,141.71,141.63,17.6507]
[1720044053496,20.4379,141.69,141.65,7.0596]
[1720044053893,7.0579,141.69,141.63,17.6507]
[1720044054089,1.00009429,141.68,141.65,7.0592]
[1720044054304,14.38009429,141.68,141.65,7.0592]
[1720044054511,1.00009429,141.68,141.65,7.0592]
[1720044055313,8.05839429,141.68,141.64,7.0599]
[1720044055623,1.00009429,141.68,141.65,7.0596]
[1720044056595,20.4378,141.69,141.65,7.0596]
[1720044056995,7.0578,141.69,141.65,20.4396]
[1720044057215,8.05789429,141.69,141.65,20.4396]
[1720044057934,21.43789429,141.69,141.65,7.0596]
[1720044061033,7.0583,141.68,141.64,20.4401]
[1720044061834,21.43789429,141.69,141.65,7.0596]
[1720044061999,8.05789429,141.69,141.65,20.4396]
[1720044062435,8.05789429,141.69,141.66,7.0591]
[1720044062436,1.00009429,141.69,141.66,7.0591]
[1720044062725,21.43719429,141.7,141.66,24.7065]
[1720044063028,1.00009429,141.71,141.66,17.6476]
[1720044063333,13.38,141.69,141.65,7.0591]
[1720044063806,20.4378,141.69,141.65,24.7081]
[1720044064005,7.0578,141.69,141.65,38.0881]
[1720044064215,20.4378,141.69,141.65,24.7081]
[1720044065631,7.0578,141.69,141.65,24.7081]
[1720044065940,7.0578,141.69,141.65,38.0881]
[1720044066627,14.38009429,141.7,141.65,24.7081]
[1720044066849,13.38,141.69,141.65,24.7081]
[1720044067006,20.4379,141.69,141.65,24.7081]
[1720044067337,1.00009429,141.68,141.62,33.9678118]
[1720044067634,7.0587,141.67,141.63,7.0602]
[1720044067815,8.05879429,141.67,141.63,7.0602]
[1720044068147,1.00009429,141.67,141.64,7.06]
[1720044068612,8.05869429,141.67,141.63,20.4404]
[1720044069134,8.05869429,141.67,141.63,7.0604]
[1720044069325,8.05869429,141.67,141.62,31.8632118]
[1720044069326,13.38,141.66,141.62,18.4832118]
[1720044069530,7.0597,141.65,141.62,18.4832118]
[1720044069708,7.0597,141.65,141.62,0.8310118]
[1720044069909,20.4392,141.66,141.62,7.8920118]
[1720044070105,20.4392,141.66,141.62,7.79535023]
[1720044071527,7.0601,141.64,141.62,0.73435023]
[1720044071737,13.38,141.64,141.62,0.73435023]
[1720044072413,7.0599,141.65,141.62,0.73435023]
[1720044072624,13.38,141.65,141.62,7.79545023]
[1720044073151,7.0597,141.65,141.62,0.73435023]
[1720044073815,20.4397,141.65,141.62,0.73435023]
[1720044074217,13.38,141.64,141.62,0.73435023]
[1720044075038,13.38,141.64,141.62,7.79505023]
[1720044075225,16.13209429,141.67,141.62,0.73435023]
[1720044075426,13.38,141.66,141.62,0.73435023]
[1720044075625,20.4394,141.66,141.62,7.79515023]
[1720044075853,20.4397,141.65,141.62,0.73435023]
[1720044077653,20.4401,141.64,141.62,0.73435023]
[1720044077961,13.38,141.64,141.62,0.73435023]
[1720044078858,20.4402,141.64,141.62,0.73435023]
[1720044079233,13.38,141.64,141.62,0.73435023]
[1720044079762,20.4401,141.64,141.62,0.73435023]
[1720044080261,1.00009429,141.66,141.62,0.73435023]
[1720044080955,7.0606,141.63,141.62,0.73435023]
[1720044081154,20.4406,141.63,141.62,0.73435023]
[1720044081541,40.4406,141.63,141.62,0.73435023]
[1720044082439,27.0606,141.63,141.62,0.73435023]
[1720044082648,40.4406,141.63,141.62,0.73435023]
[1720044083248,50.0415,141.63,141.54,15.4317]
[1720044083441,50.0415,141.63,141.53,23.7666]
[1720044083442,7.0636,141.57,141.53,38.1087]
[1720044083643,7.0636,141.57,141.53,24.7287]
[1720044083845,7.0642,141.56,141.52,7.0661]
[1720044084063,7.0642,141.56,141.52,20.4461]
[1720044084445,20.4438,141.57,141.5,39.24]
[1720044084763,20.4438,141.57,141.52,20.4456]
[1720044084963,7.0642,141.56,141.52,20.4456]
[1720044085164,7.0647,141.55,141.51,7.0664]
[1720044085341,13.38,141.55,141.5,24.7336]
[1720044085554,13.38,141.54,141.48,0.8310118]
[1720044085740,20.4453,141.54,141.49,7.25826196]
[1720044085943,7.0653,141.54,141.5,20.4469]
[1720044086157,1.00009429,141.56,141.52,7.0659]
[1720044086371,8.06449429,141.56,141.52,20.4459]
[1720044086962,21.44449429,141.56,141.52,7.0659]
[1720044087169,7.0648,141.55,141.51,31.0454]
[1720044087343,20.4448,141.55,141.51,38.1119]
[1720044087545,20.4448,141.55,141.51,17.6654]
[1720044087743,20.4448,141.55,141.51,24.732]
[1720044088239,13.38,141.55,141.51,17.6654]
[1720044088445,1.00009429,141.56,141.51,17.6654]
[1720044088669,14.38009429,141.56,141.51,17.6654]
[1720044088853,21.44459429,141.56,141.51,31.0454]
[1720044089055,21.44459429,141.56,141.51,38.1116]
[1720044089255,20.4446,141.55,141.51,24.7316]
[1720044090264,7.0653,141.54,141.51,17.6654]
[1720044091343,20.4448,141.55,141.51,24.732]
[1720044093466,13.38,141.55,141.51,17.6654]
[1720044093666,13.38,141.55,141.5,13.38]
[1720044093860,7.0648,141.55,141.51,7.0662]
[1720044094167,20.4442,141.56,141.52,7.066]
[1720044094344,7.0646,141.55,141.51,20.4464]
[1720044094957,20.4443,141.56,141.52,7.066]
[1720044095908,7.065,141.55,141.5,17.6678]
[1720044096079,7.0651,141.54,141.5,24.7345]
[1720044096254,13.38,141.55,141.51,7.0662]
[1720044096462,20.4446,141.55,141.51,7.0662]
[1720044096847,7.0646,141.55,141.51,7.0662]
[1720044097048,7.0646,141.55,141.51,20.4462]
[1720044097765,20.4446,141.55,141.51,7.0662]
[1720044097958,7.0651,141.54,141.5,38.1147]
[1720044098274,7.0662,141.52,141.5,13.38]
[1720044098451,20.4455,141.54,141.5,7.0668]
[1720044098652,7.0655,141.54,141.51,7.0666]
[1720044098853,7.0655,141.54,141.5,20.4469]
[1720044099059,7.0646,141.55,141.51,20.4464]
[1720044099372,7.0652,141.54,141.5,20.447]
[1720044099870,7.0646,141.55,141.51,17.6663]
[1720044100072,1.00009429,141.6,141.54,20.4448]
[1720044100377,20.4427,141.59,141.55,7.0645]
[1720044100549,20.4427,141.59,141.55,24.726]
[1720044100754,7.0627,141.59,141.55,24.726]
[1720044100964,7.0627,141.59,141.55,38.106]
[1720044101151,13.38,141.57,141.53,13.38]
[1720044101472,7.0632,141.58,141.54,20.445]
[1720044101861,7.0632,141.58,141.54,7.065]
[1720044102061,7.0632,141.58,141.54,20.445]
[1720044102454,7.0632,141.58,141.54,7.065]
[1720044102650,7.0632,141.58,141.54,20.445]
[1720044104181,20.4432,141.58,141.54,7.065]
[1720044106682,13.38,141.58,141.54,7.065]
[1720044107177,20.4434,141.58,141.54,7.065]
[1720044107492,20.4434,141.58,141.53,20.4454]
[1720044107493,7.0637,141.57,141.53,20.4454]
[1720044107780,21.44229429,141.6,141.56,24.7239]
[1720044107979,13.38,141.6,141.57,7.0636]
[1720044108478,7.0621,141.6,141.57,7.0636]
[1720044108667,20.4419,141.61,141.57,7.0636]
[1720044108855,7.0619,141.61,141.57,7.0636]
[1720044109057,20.4419,141.61,141.57,7.0636]
[1720044109357,7.0621,141.6,141.57,8.47414111]
[1720044109773,20.4417,141.61,141.57,8.47414111]
[1720044110254,7.0622,141.6,141.57,1.41054111]
[1720044112058,7.0617,141.61,141.57,8.47394111]
[1720044112259,13.38,141.62,141.57,14.79054111]
[1720044112585,20.4413,141.62,141.58,7.063]
[1720044112893,20.4413,141.62,141.57,14.79054111]
[1720044112894,7.0617,141.61,141.59,1.41034186]
[1720044113495,8.05909429,141.67,141.62,17.6521]
[1720044113666,1.00009429,141.69,141.63,1.40994354]
[1720044113858,1.00009429,141.69,141.63,14.78994354]
[1720044114060,1.00009429,141.69,141.63,20.4404]
[1720044114280,20.4382,141.68,141.63,20.4404]
[1720044114494,13.38,141.67,141.63,7.0604]
[1720044114699,20.4382,141.68,141.63,20.4404]
[1720044114876,6.7712592,141.7,141.64,13.38]
[1720044115083,6.7712592,141.7,141.62,23.772]
[1720044115084,1.00009429,141.72,141.65,13.38]
[1720044115266,1.00009429,141.72,141.62,6.1199]
[1720044115267,13.38,141.7,141.67,17.646]
[1720044115786,20.4373,141.7,141.66,7.059]
[1720044116285,13.38,141.7,141.66,7.059]
[1720044116891,20.4367,141.71,141.66,7.059]
[1720044117091,7.0563,141.72,141.67,13.38]
[1720044117272,13.64035821,141.73,141.68,31.025]
[1720044117598,20.4363,141.72,141.68,24.703]
[1720044117975,20.4363,141.72,141.68,17.645]
[1720044118202,7.0567,141.71,141.68,17.645]
[1720044118420,20.4362,141.72,141.68,17.645]
[1720044118703,20.4362,141.72,141.68,24.703]
[1720044119971,8.05569429,141.74,141.69,7.0576]
[1720044120171,13.38,141.72,141.69,7.0576]
[1720044120591,13.38,141.72,141.68,24.703]
[1720044120900,13.38,141.7,141.65,17.6482]
[1720044121198,13.38,141.69,141.65,17.6482]
[1720044121500,13.38,141.69,141.66,7.0591]
[1720044121678,13.38,141.7,141.67,7.0586]
[1720044122213,13.38,141.7,141.66,7.059]
[1720044122416,20.4374,141.7,141.65,38.0874]
[1720044122729,20.4374,141.7,141.66,7.059]
[1720044123512,13.38,141.7,141.66,7.059]
[1720044124093,7.0565,141.72,141.67,7.0583]
[1720044124397,13.38,141.71,141.67,7.0583]
[1720044124793,13.38,141.7,141.67,7.0583]
[1720044125293,20.4373,141.7,141.66,7.059]
[1720044125498,13.38,141.7,141.66,7.059]
[1720044125946,7.0567,141.71,141.66,20.439]
[1720044126093,20.4367,141.71,141.66,20.439]
[1720044127513,7.0573,141.7,141.66,20.439]
[1720044127920,1.00009429,141.74,141.65,13.38]
[1720044128093,7.0562,141.72,141.67,24.7046]
[1720044128418,20.4366,141.71,141.67,24.7046]
[1720044128600,20.4366,141.71,141.67,17.6461]
[1720044128799,20.4372,141.7,141.66,7.0589]
[1720044128999,7.0578,141.69,141.64,17.6493]
[1720044129215,7.0578,141.69,141.65,20.4393]
[1720044130225,7.0566,141.71,141.66,17.6475]
[1720044130413,20.4375,141.7,141.66,24.7065]
[1720044130717,7.0576,141.69,141.65,7.0595]
[1720044130940,13.38,141.68,141.65,7.0595]
[1720044131125,20.4382,141.68,141.64,7.0599]
[1720044131294,20.4383,141.68,141.63,24.7112]
[1720044131490,20.4383,141.68,141.64,7.0601]
[1720044131715,20.4383,141.68,141.63,38.0911]
[1720044131907,20.4382,141.68,141.64,7.0601]
[1720044132617,7.0586,141.67,141.63,38.0912]
[1720044132801,1.00009429,141.67,141.6,15.9578]
[1720044133002,21.00009429,141.69,141.6,15.9578]
[1720044133313,13.38,141.67,141.63,13.38]
[1720044133504,13.38,141.67,141.64,17.6502]
[1720044133505,13.38,141.66,141.64,17.6502]
[1720044133899,7.0583,141.68,141.64,24.7103]
[1720044134320,13.38,141.68,141.65,7.0594]
[1720044134520,20.0,141.69,141.67,7.0584]
[1720044134823,21.00009429,141.69,141.65,7.0594]
[1720044135023,13.38,141.68,141.65,7.0594]
[1720044135620,27.0579,141.69,141.65,7.0594]
[1720044135935,13.38,141.68,141.65,7.0594]
[1720044136912,7.0579,141.69,141.65,7.0594]
[1720044137315,13.38,141.68,141.65,7.0594]
[1720044139002,7.0579,141.69,141.65,7.0594]
[1720044139205,13.38,141.69,141.66,7.059]
[1720044139919,7.0591,141.66,141.62,24.7129]
[1720044140124,7.0597,141.65,141.61,7.4013]
[1720044140327,13.38,141.66,141.61,31.0338]
[1720044140629,20.4395,141.66,141.62,7.061]
[1720044141126,17.6427,141.71,141.63,17.6514]
[1720044141325,13.38,141.68,141.63,31.0314]
[1720044141536,1.00009429,141.7,141.63,31.0314]
[1720044141701,13.38,141.69,141.65,17.649]
[1720044142130,13.38,141.7,141.65,31.029]
[1720044142434,1.00009429,141.72,141.65,31.029]
[1720044142607,7.0574,141.7,141.66,7.0591]
[1720044142808,13.38,141.69,141.66,7.0591]
[1720044143005,20.4378,141.69,141.65,24.7086]
[1720044143308,7.0573,141.7,141.66,7.0591]
[1720044143516,13.38,141.69,141.66,7.0591]
[1720044143820,7.0573,141.7,141.66,7.0591]
[1720044144126,20.4373,141.7,141.66,7.0591]
[1720044146134,1.00009429,141.73,141.67,17.6456]
[1720044146331,1.00009429,141.75,141.68,13.38]
[1720044146505,7.0554,141.74,141.7,7.057]
[1720044146701,8.05449429,141.76,141.72,7.0561]
[1720044146906,20.4347,141.75,141.71,24.6979]
[1720044147238,13.38,141.76,141.72,7.0559]
[1720044147414,7.0541,141.77,141.73,24.6943]
[1720044147603,7.0542,141.76,141.73,17.6389]
[1720044147807,20.4342,141.76,141.72,7.0559]
[1720044148003,7.0552,141.74,141.7,24.6984]
[1720044148328,7.0552,141.74,141.7,38.0784]
[1720044148921,7.0552,141.74,141.71,7.0566]
[1720044149113,20.4348,141.75,141.71,7.0566]
[1720044149312,20.4353,141.74,141.7,24.6988]
[1720044149529,13.38,141.74,141.69,7.0574]
[1720044149727,7.0562,141.72,141.68,26.5816]
[1720044150220,20.4358,141.73,141.68,26.5816]
[1720044150422,7.0553,141.74,141.7,7.057]
[1720044150625,8.05479429,141.75,141.71,7.0563]
[1720044150826,13.38,141.74,141.71,7.0563]
[1720044151337,20.4352,141.74,141.71,7.0563]
[1720044151542,20.4343,141.76,141.72,7.0561]
[1720044152127,7.0543,141.76,141.72,7.0561]
[1720044152334,20.4343,141.76,141.72,7.0561]
[1720044153544,20.4343,141.76,141.73,7.0556]
[1720044154651,14.6364525,141.81,141.77,7.0534]
[1720044154821,42.2676,141.85,141.74,15.2007]
[1720044154822,20.4313,141.82,141.74,15.2007]
[1720044155028,42.2676,141.85,141.79,7.0522]
[1720044155029,7.0507,141.83,141.79,7.0522]
[1720044155221,13.38,141.83,141.8,7.0518]
[1720044155525,20.4305,141.84,141.8,7.0518]
[1720044156022,7.0505,141.84,141.8,7.0518]
[1720044156228,8.04909429,141.87,141.82,7.051]
[1720044156549,22.83339429,141.92,141.86,7.049]
[1720044156763,22.83339429,141.92,141.86,17.6225]
[1720044156764,13.38,141.89,141.86,17.6225]
[1720044156930,22.83339429,141.92,141.87,0.47265501]
[1720044156931,13.38,141.9,141.87,0.47265501]
[1720044157130,13.38,141.9,141.87,7.52125501]
[1720044157448,13.38,141.9,141.86,24.6715]
[1720044158059,13.38,141.89,141.86,24.6715]
[1720044158245,13.38,141.88,141.84,7.0499]
[1720044158556,13.38,141.88,141.85,7.0495]
[1720044158928,8.04669429,141.92,141.87,7.0487]
[1720044159134,13.38,141.91,141.87,20.4287]
[1720044159839,7.0467,141.91,141.87,7.0487]
[1720044160039,7.0463,141.92,141.87,7.0487]
[1720044160348,7.0463,141.92,141.88,7.048]
[1720044160727,8.04529429,141.95,141.9,7.0468]
[1720044160948,7.0452,141.94,141.9,7.0468]
[1720044161748,7.0452,141.94,141.89,17.6189]
[1720044161749,7.0452,141.94,141.89,24.6664]
[1720044162055,7.0457,141.93,141.89,24.6664]
[1720044163128,5.5443,141.96,141.91,17.6164]
[1720044163335,5.5443,141.96,141.91,24.6627]
[1720044163534,7.0449,141.95,141.91,17.6164]
[1720044163755,7.0452,141.94,141.91,17.6164]
[1720044163954,7.0452,141.94,141.9,7.047]
[1720044164154,7.0447,141.95,141.91,7.0466]
[1720044164337,7.0448,141.95,141.91,7.0465]
[1720044165131,0.8310118,141.97,141.92,17.6153]
[1720044165554,0.8310118,141.97,141.94,7.0447]
[1720044167058,0.8310118,141.97,141.95,7.0446]
[1720044167246,0.8310118,141.97,141.96,7.0442]
[1720044167439,0.8310118,141.97,141.95,7.0445]
[1720044167958,0.8310118,141.97,141.95,1.40865681]
[1720044168554,0.8310118,141.97,141.94,24.6577]
[1720044169853,0.8310118,141.97,141.91,17.9565]
[1720044170059,0.8310118,141.97,141.91,17.6165]
[1720044170257,7.8750118,141.97,141.93,7.0456]
[1720044170448,7.0442,141.96,141.92,7.046]
[1720044170945,7.8748118,141.97,141.92,7.046]
[1720044172442,7.8748118,141.97,141.93,7.0456]
[1720044174164,7.8748118,141.97,141.91,17.6165]
[1720044174165,7.0443,141.96,141.92,7.046]
[1720044174354,7.0442,141.96,141.92,7.046]
[1720044175239,7.8748118,141.97,141.93,7.0456]
[1720044175676,7.8748118,141.97,141.94,7.0452]
[1720044175974,7.8748118,141.97,141.93,24.6598]
[1720044176840,7.8748118,141.97,141.94,7.0452]
[1720044177742,0.8310118,141.97,141.94,7.0452]
[1720044177943,7.8747118,141.97,141.94,7.0452]
[1720044178260,7.8747118,141.97,141.93,24.6597]
[1720044178834,1.00009429,141.96,141.91,7.0466]
[1720044179040,7.0449,141.95,141.91,7.0466]
[1720044179534,8.04449429,141.96,141.91,7.0466]
[1720044179737,1.00009429,141.95,141.91,7.0466]
[1720044180666,8.04489429,141.95,141.91,7.0466]
[1720044181569,7.0448,141.95,141.91,7.0466]
[1720044181873,13.38,141.94,141.91,7.0466]
[1720044182070,20.4252,141.94,141.91,7.0466]
[1720044182372,20.4252,141.94,141.9,17.6171]
[1720044182569,8.04619429,141.93,141.88,7.0478]
[1720044182873,13.38,141.91,141.89,7.0475]
[1720044183049,20.4262,141.92,141.88,7.048]
[1720044183364,13.38,141.91,141.88,7.048]
[1720044183745,13.38,141.9,141.85,15.9002]
[1720044183949,13.38,141.89,141.86,7.0489]
[1720044184142,13.38,141.88,141.86,7.0489]
[1720044184560,13.38,141.89,141.86,7.0489]
[1720044184768,13.38,141.89,141.87,7.0485]
[1720044184958,13.38,141.9,141.87,7.0485]
[1720044185796,1.00009429,141.93,141.88,17.6198]
[1720044185951,1.00009429,141.96,141.9,17.6177]
[1720044186149,40.9952118,141.97,141.9,17.6177]
[1720044186150,8.04519429,141.95,141.91,7.0466]
[1720044187179,8.87510609,141.97,141.93,24.6591]
[1720044187351,8.04449429,141.96,141.93,17.6135]
[1720044187670,8.04449429,141.96,141.92,7.046]
[1720044187843,7.0447,141.95,141.91,7.0465]
[1720044188446,7.0453,141.94,141.9,24.6643]
[1720044188655,7.0447,141.95,141.91,7.0465]
[1720044189644,8.04549429,141.94,141.9,17.6172]
[1720044189847,7.0458,141.93,141.9,17.6172]